Cogmind - Beta 13 @@@ ROGUE MODE // 2024.07.09 @ 20:21:32 Player: ThatBishHoly Result: Destroyed by G-34 Mercenary with Small Laser Performance ------------- Evolutions (1) 500 Regions Visited (2) 400 Robots Destroyed (17) 85 Value Destroyed (465) 465 Prototype IDs (0) 0 Alien Tech Used (0) 0 Bonus (0) 0 TOTAL SCORE: 1450 Bonus ------- None Cogmind --------- Core Integrity 0/400 Matter 149/300 Energy 100/100 System Corruption 0% Temperature Cool (6) Movement Core (200) Ox3 Location -9/Materials Parts ------- > --- POWER (1) -------- (None) > --- PROPULSION (4) --- (None) > --- UTILITY (2) ------ Medium Storage Unit Signal Interpreter > --- WEAPON (2) ------- (None) > --- INVENTORY (10) --- Sensor Array Peak State ------------ > --- POWER ------------ Improved Ion Engine > --- PROPULSION ------- Hover Unit Hover Unit Improved Hover Unit > --- UTILITY ---------- Medium Storage Unit Signal Interpreter > --- WEAPON ----------- Assault Rifle Heavy Assault Rifle > --- INVENTORY -------- Sensor Array Grenade Launcher [Rating: 11] Favorites ----------- Power Ion Engine Engine Ion Engine Propulsion Hover Unit Treads Light Treads Hover Unit Hover Unit Utility Signal Interpreter Storage Small Storage Unit Processor Signal Interpreter Weapon Light Assault Rifle Ballistic Gun Light Assault Rifle Launcher Grenade Launcher Build | -11 -10 -9 ------- Run | Yrd Mat Mat Slots Evolved 2 | . . 2 Power . | . . . Propulsion 2 | . . 2 Utility . | . . . Weapon . | . . . Parts Attached 23 | 6 5 12 Power 2 | 1 . 1 Engine 2 | 1 . 1 Core . | . . . Reactor . | . . . Propulsion 11 | 2 3 6 Treads 2 | 2 . . Leg . | . . . Wheel . | . . . Hover 9 | . 3 6 Flight . | . . . Utility 3 | 1 1 1 Device . | . . . Storage 2 | 1 . 1 Processor 1 | . 1 . Hackware . | . . . Protection . | . . . Artifact . | . . . Weapon 7 | 2 1 4 Energy Gun . | . . . Energy Cannon . | . . . Ballistic Gun 6 | 2 1 3 Ballistic Cannon . | . . . Launcher 1 | . . 1 Special Weapon . | . . . Impact Weapon . | . . . Slashing Weapon . | . . . Piercing Weapon . | . . . Special Melee Weapon . | . . . Unidentified Prototypes . | . . . Parts Lost 12 | . . 12 Power 2 | . . 2 Propulsion 6 | . . 6 Utility . | . . . Weapon 4 | . . 4 Highest Loss Streak 6 | . . 6 To Critical Strikes . | . . . Average Slot Usage (%) 87 | . 98 73 Engine 11 | . 14 8 Treads 4 | . 8 . Hover 22 | . 19 26 Storage 12 | . 14 11 Processor 12 | . 13 11 Ballistic Gun 21 | . 27 13 Launcher 1 | . . 2 Naked Turns . | . . . Heaviest Build 23 | 13 13 23 Greatest Support 40 | 40 40 24 Greatest Overweight (x) 5 | . 4 5 Average Overweight (x) . | . . . Largest Inventory Capacity 10 | 8 8 10 Average Capacity 8 | 6 8 9 Most Carried 7 | 5 7 5 Average Carried 2 | . 3 2 Final Capacity 10 | 8 8 10 Final Carried 6 | . 6 1 Class Distribution -------------------- 100% | Mutant Dominant Class ---------------- Mutant | -10/Materials Mutant | -9/Materials Resources | -11 -10 -9 ----------- Run | Yrd Mat Mat Matter Collected 515 | 224 176 115 Remotely . | . . . Salvage Created 561 | . 237 324 Parts 42 | . 17 25 Haulers Intercepted 1 | . . 1 Recyclers Shooed . | . . . Parts Field Recycled . | . . . Retrieved Matter . | . . . Parts Self-Destructed . | . . . Prevented . | . . . Kills | -11 -10 -9 ------- Run | Yrd Mat Mat Combat Hostiles Destroyed 16 | . 7 9 Guns 15 | . 7 8 AOE 1 | . . 1 Classes Destroyed 4 | . 2 2 Hauler 1 | . . 1 Swarmer 7 | . 3 4 Grunt 5 | . 4 1 Sentry 4 | . . 4 Best Kill Streak 5 | . 2 5 Combat Bots Only 5 | . 2 5 Max Kills in Single Turn 2 | . 1 2 Gunslinging 1 | . . 1 Exploded 1 | . . 1 Melee . | . . . Uniques/NPCs Destroyed . | . . . Combat | -11 -10 -9 -------- Run | Yrd Mat Mat Hostile Shots Fired 173 | . 55 118 Missed 58 | . 20 38 Damage Taken 1419 | . 381 1038 Core 467 | . 60 407 Absorbed by Shields . | . . . Core Remaining (%) 88 | 100 76 . Volleys Fired 70 | . 25 45 Largest 2 | . 2 2 Hottest 53 | . 40 53 Shots Fired 126 | . 50 76 Gun 122 | . 50 72 Cannon . | . . . Launcher 4 | . . 4 Special . | . . . Kinetic 122 | . 50 72 Thermal . | . . . Explosive 4 | . . 4 Electromagnetic . | . . . Robot Hit Streak 9 | . 9 7 Robot Miss Streak 8 | . 6 8 Penetration Max . | . . . Secondary Targets 2 | . 1 1 Max Gunslinging Chain 1 | . 1 1 Shots Hit Robots 76 | . 27 49 Core Hits 37 | . 14 23 Critical Kills 1 | . . 1 Critical Parts Destroyed . | . . . Critical Strikes 1 | . . 1 Destroy 1 | . . 1 Melee Attacks . | . . . Impact . | . . . Slashing . | . . . Piercing . | . . . Sneak Attacks . | . . . Combat Hostiles . | . . . Follow-up Attacks . | . . . Damage Inflicted 967 | . 316 651 Guns 880 | . 315 565 Cannons . | . . . Explosions 72 | . . 72 Melee . | . . . Ramming 15 | . 1 14 Kinetic 880 | . 315 565 Thermal . | . . . Explosive 72 | . . 72 Electromagnetic . | . . . Impact . | . . . Slashing . | . . . Piercing . | . . . Highest Corruption . | . . . Average Corruption . | . . . Corruption Purged . | . . . Corruption Blocked . | . . . Overload Shots . | . . . Overflow Damage 3 | . . 3 Projectiles . | . . . Explosions 3 | . . 3 Melee . | . . . Knockbacks 1 | . . 1 Impact 1 | . . 1 Kinetic . | . . . Secondary . | . . . Self-Inflicted Damage 106 | . . 106 Shots 4 | . . 4 Rammed 5 | . 1 4 Targets Rammed 5 | . 1 4 Kicked . | . . . Crushed . | . . . Highest Temperature 21 | . 21 18 Average Temperature 6 | . 7 5 Received Heat Transfer 426 | . 165 261 Siege Activations . | . . . Robots Corrupted . | . . . Combat Hostiles . | . . . Parts Fried . | . . . Impact Corruptions . | . . . Robots Melted . | . . . Combat Hostiles . | . . . Parts Melted . | . . . Heat Transferred . | . . . Parts Sabotaged . | . . . Parts Stolen . | . . . Parts Stripped . | . . . Power Chain Reactions . | . . . Alert | -11 -10 -9 ------- Run | Yrd Mat Mat Peak Influence 334 | . 260 334 Initial 27 | . . 27 Average 124 | . 91 208 Maximum Alert Level 1 | . 1 1 Low Security (%) 74 | 100 86 50 Level 1 25 | . 13 49 Level 2 . | . . . Level 3 . | . . . Level 4 . | . . . Level 5 . | . . . High Security . | . . . Max Security . | . . . Squads Dispatched 2 | . 1 1 Investigation 2 | . 1 1 Extermination . | . . . Reinforcement . | . . . Assault . | . . . Garrison . | . . . Intercept . | . . . Searches Triggered . | . . . Construction Impeded . | . . . Haulers Reinforced . | . . . Active Scanning Responses . | . . . Cargo Convoy Interrupts . | . . . Stealth | -11 -10 -9 --------- Run | Yrd Mat Mat Distress Signals 3 | . 2 1 Communications Jammed . | . . . Distress Signals . | . . . Times Spotted 28 | . 10 18 Peak Tracking Total 7 | . 3 7 Tactical Retreats 1 | . 1 . Traps | -11 -10 -9 ------- Run | Yrd Mat Mat Traps Triggered 2 | . 1 1 Indirectly . | . . . Trap Hack Attempts . | . . . Triggered . | . . . Disarmed . | . . . Reprogrammed . | . . . Reused . | . . . Traps Extracted . | . . . Installed . | . . . Triggered . | . . . Machines | -11 -10 -9 ---------- Run | Yrd Mat Mat Machines Disabled 3 | . . 3 Max in Single Turn 3 | . . 3 Machines Repaired . | . . . Machines Dismantled . | . . . Machines Sabotaged . | . . . Overloaded Fab Kills . | . . . Hacking | -11 -10 -9 --------- Run | Yrd Mat Mat Machines Accessed 2 | . 2 . Terminals 2 | . 2 . Fabricators . | . . . Repair Stations . | . . . Recycling Units . | . . . Scanalyzers . | . . . Garrison Access . | . . . Total Hacks 4 | . 4 . Successful 2 | . 2 . Failed 2 | . 2 . Catastrophic 1 | . 1 . Database Lockouts . | . . . Manual . | . . . Terminals 4 | . 4 . Fabricators . | . . . Repair Stations . | . . . Recycling Units . | . . . Scanalyzers . | . . . Garrison Access . | . . . Terminal Hacks 2 | . 2 . Hauler Manifests 1 | . 1 . Zone Layout 1 | . 1 . Fabricator Hacks . | . . . Repair Station Hacks . | . . . Recycling Unit Hacks . | . . . Scanalyzer . | . . . Garrison Access Hacks . | . . . Unauthorized Hacks . | . . . Terminals . | . . . Fabricators . | . . . Repair Stations . | . . . Recycling Units . | . . . Scanalyzers . | . . . Garrison Access . | . . . Data Cores Recovered . | . . . Used . | . . . Hacking Detections 2 | . 2 . Full Trace Events 1 | . 1 . Feedback Events . | . . . Feedback Blocked . | . . . Robot Schematics Acquired . | . . . Robots Built . | . . . Authchips . | . . . Time . | . . . Total Robot Build Rating . | . . . Part Schematics Acquired . | . . . Parts Built . | . . . Authchips . | . . . Time . | . . . Total Part Build Rating . | . . . Parts Repaired . | . . . Time . | . . . Parts Recycled . | . . . Recycled Matter . | . . . Retrieved Matter . | . . . Retrieved Components . | . . . Parts Scanalyzed . | . . . Part Schematics Acquired . | . . . Parts Damaged . | . . . Bothacking | -11 -10 -9 ------------ Run | Yrd Mat Mat Used RIF Installer . | . . . Robots Hacked . | . . . Non-combat . | . . . Combat . | . . . Robot Hacks Applied . | . . . Relay Couplers Released . | . . . Fabnet Peak Effective % . | . . . Robots Rewired . | . . . Allies Hacked . | . . . Hacks Repelled . | . . . Allies | -11 -10 -9 -------- Run | Yrd Mat Mat Total Allies . | . . . Largest Group . | . . . Highest-Rated Group . | . . . Highest-Rated Ally . | . . . Total Orders . | . . . Ally Attacks . | . . . Total Damage . | . . . Kills . | . . . Allies Corrupted . | . . . Allies Melted . | . . . Intel | -11 -10 -9 ------- Run | Yrd Mat Mat Robot Analysis Total . | . . . Derelict Logs Recovered . | . . . Drone Launches . | . . . Drone Recoveries . | . . . Exploration | -11 -10 -9 ------------- Run | Yrd Mat Mat Turns Passed 1034 | 136 502 396 Spaces Moved 656 | 104 301 251 Core 50 | 40 3 7 Treads 126 | 64 62 . Legs . | . . . Wheels . | . . . Hover 480 | . 236 244 Flight . | . . . Fastest Speed 48 | 50 56 48 Average Speed 111 | 117 125 91 Slowest Speed 300 | 160 250 300 Overloaded Moves . | . . . Propulsion Burnouts . | . . . Robots Hopped . | . . . Cave-ins Triggered . | . . . Exploration Rate (%) 23 | 5 39 27 Regions Visited 2 Branch Regions . Pre-discovered Areas . | . . . Known Exits Taken 1 | . 1 . Unknown Exits Taken 1 | 1 . . Scrap Searched . | . . . Spaces Dug . | . . . Terrain Destroyed 53 | . . 53 Melee . | . . . Projectile . | . . . AOE 53 | . . 53 Terrain Rammed . | . . . Walls Destroyed . | . . . Machines Disabled . | . . . Actions | -11 -10 -9 --------- Run | Yrd Mat Mat Total 844 | 119 382 343 Wait 60 | . 37 23 Move 654 | 103 300 251 Hop . | . . . Pick Up 24 | 8 11 5 Fast Attach . | . . . Attach 17 | 6 4 7 Detach . | . . . Swap 6 | . 1 5 Drop 8 | 2 3 3 Fire 70 | . 25 45 Melee . | . . . Ram 5 | . 1 4 Kick . | . . . Crush . | . . . Escape Stasis . | . . . Rewire . | . . . Trap . | . . . Miscellaneous . | . . . Route ------- -11/Scrapyard -10/Materials -9/Materials (discovered 2 exits: [*Min] / [*Sto]) History --------- Turn | Location | Event 2 | -11/Scrapyard | Met Revision 17 5 | -11/Scrapyard | Discovered new exit (range 14) 137 | -11/Scrapyard | Entered Materials 315 | -10/Materials | Build established: Mutant 583 | -10/Materials | Discovered new exit (range 13) 638 | -10/Materials | Identified exit to Materials 639 | -10/Materials | Entered another Materials area 639 | -9/Materials | Evolved 2 slots: Propulsion x2 657 | -9/Materials | Discovered new exit (range 16) 695 | -9/Materials | Discovered new exit (range 13) 783 | -9/Materials | Lost 5 parts (1p3n1w) 1018 | -9/Materials | Core integrity fell below 50% 1032 | -9/Materials | Core integrity fell below 20% 1035 | -9/Materials | Destroyed by G-34 Mercenary with Small Laser Last Messages --------------- 00958_ U-05 Engineer lays Concrete. 00960_ U-05 Engineer builds a Wall. 00960_ U-05 Engineer lays Concrete. 00960_ Slammed into U-05 Engineer. 00961_ U-05 Engineer lays Concrete. 00962_ Slammed into U-05 Engineer. 00962_ U-05 Engineer knocked back. 00962_ K-01 Serf collects debris. 00962_ U-05 Engineer lays Concrete. 00963_ Slammed into U-05 Engineer. 00982_ Hover Unit destroyed. 01012_ Imp. Hover Unit destroyed. 01013_ G-34 Mercenary destroyed. 01019_ Assault Rifle destroyed. 01024_ C-30 ARC bursts open, deploying its payload. 01024_ S-10 Pest unfolds itself. 01025_ U-05 Engineer builds a Wall. 01025_ Imp. Ion Engine destroyed. 01034_ W-16 Scout sends out distress signal. 01035_ S-10 Pest destroyed. Map ----- +----------------------------------------------------+ | ??????????????????????????????????????????? | | ??????????????????????????????????????????? | | ??????????????????????????????????????????? | | ??????????????????????????????????????????? | | ??????????????????????????????????????????? | | ??????????????????????????????????????????? | | ??????????????????????????????????????????? | | #########?????????????????????????????????? | | ! #?????????????????????????????????? | | !! #?????????????????????????????????? | | !! #?????????????????????????????????? | | ##### #?????????????????????????????????? | | ## #?????????????????????????????????? | | "" ## #?????????????????????????????????? | | Y" ## #?????????????????????????????????? | | ## #?????????????????????????????????? | | ## #?????????????????????????????????? | | ## #?????????????????????????????????? | | ## #?????????????????????????????????? | | ## #?????????????????????????????????? | | ! ## #?????????????????????????????????? | | ! ## ###################???????? ##???? | | ## ####### #???? | | ## #???? | | ## T Y #???? | | ### / """"### @ #???? | | #" ### ####### #???? | | #" ## ##???????????????? | | " ## g [ #????????????????? | | "" ## s *%=#????????????????? | | "" ##u """s= #????????????????? | | "" #### """ #????????????????? | | "" + """s + ???????????????? | | #" ### w % # ??????????????? | | #"""" #### # ?????????????? | | #### ####???# """ #? ????????????? | | ???###???????# """ #??##+???????????? | | ?????????????# """ #????????????????? | | ?????????????# #????????????????? | | ?????????????# #????????????????? | | ?????????????# """ #????????????????? | | ?????????????# """ #????????????????? | | ?????????????# """ ???????????????? | | ?????????????# ??????????????? | | ?????????????# ? ??????????????? | | ?????????????# ?????????????????? | | ?????????????########## ????????????????? | | ??????????????????????? ????????????????? | | ????????????????????????? ????????????????? | | ?????????????????????????? ???????????????? | +----------------------------------------------------+ Best States ------------- Heat Dissipation 28 Energy Generation 12 Energy Capacity 265 Matter Stores 300 Matter Capacity 300 Sight Range 16 Terrain Scan Density 10 Evasion (%) 55 Recoil Reduction 2 Item Schematics ----------------- None Robot Schematics ------------------ None Fabricated ------------ Nothing Alien Tech Used ----------------- None Achievements -------------- None Challenges ------------ None Game ------ Seed PlasmaAlertRigger Manual? 0 Play Time 00:11:44 Cumulative 41.3 hours Start 2024.07.09 @ 20:04:46 End 2024.07.09 @ 20:21:32 Sessions 1 Manual Loads 0 Difficulty Rogue Special Mode None Game No. 117 Rogue 117 Adventurer 0 Explorer 0 Win Type - Total 0 Types 0/0/0/0/0/0/0/0/0 Lore% 18 Gallery% 36 Achievement% 24 Wizard Run 0 Options --------- Layout 0 ASCII 0 Keyboard 0 Movement Arrows Keybinds 0 Fullscreen 1 Font 12/Smallcaps Map View 38x28 Zoom Use 100% Tactical HUD 1 Map Filters NONE Filters NONE Steam SD RUN: a1540034-2998-4734-8616-4ec2062d1562